Workbook

Sheet Izračunavanje kredita
B2: IZRAČUNAVANJE STUDENTSKOG | G2: 50,000 kn | L2: 2011-05-10
B3: KREDITA
B5: Preporučljivo je da ukupni iznos mjesečne rate za otplatu studentskog kredita ne bude veći od 8% godišnje zarade prve godine.
C7: Vaša kombinirana trenutna mjesečna uplata iznosi: | F7: =StudentskiKrediti[[#Totals],[Trenutna mjesečna uplata]] -> 328.59 kn | I7: Vaša kombinirana trenutna mjesečna rata iznosi: | M7: =StudentskiKrediti[[#Totals],[Rata]] -> 328.59 kn
C8: Postotak mjesečnog prihoda: | F8: =StudentskiKrediti[[#Totals],[Trenutna mjesečna uplata]]/OčekivaniMjesečniPrihod -> 7.89% | I8: Postotak mjesečnog prihoda: | M8: =StudentskiKrediti[[#Totals],[Rata]]/OčekivaniMjesečniPrihod -> 7.89%
C11: OPĆENITI PODACI O KREDITU | G11: PODACI O OTPLATI KREDITA | J11: DETALJI O PLAĆANJU
C12: Br. kredita | D12: Kreditor | E12: Iznos kredita | F12: Godišnja kamatna stopa | G12: Datum početka | H12: Trajanje (godine) | I12: Datum završetka | J12: Trenutna mjesečna uplata | K12: Ukupna kamata | L12: Rata | M12: Godišnja uplata
C13: 10998M88 | D13: Kreditor 1 | E13: 10,000.00 kn | F13: 5.00% | G13: 2011-04-01 | H13: 10 | I13: =IF(AND(StudentskiKrediti[[#This Row],[Datum početka]]>0,StudentskiKrediti[[#This Row],[Trajanje (godine)]]>0),EDATE(StudentskiKrediti[[#This Row],[Datum početka]],StudentskiKrediti[[#This Row],[Trajanje (godine)]]*12),"") -> 2021-04-01 | J13: =IF(AND(RazdobljaOtplateKreditaPočinjeDanas,COUNT(StudentskiKrediti[[#This Row],[Iznos kredita]]:StudentskiKrediti[[#This Row],[Trajanje (godine)]])=4,StudentskiKrediti[[#This Row],[Datum početka]]<TODAY()),PMT(StudentskiKrediti[[#This Row],[Godišnja kamatna stopa]]/12,StudentskiKrediti[[#This Row],[Trajanje (godine)]]*12,-StudentskiKrediti[[#This Row],[Iznos kredita]],0,0),"") -> 106.07 kn | K13: =IFERROR((StudentskiKrediti[[#This Row],[Rata]]*(StudentskiKrediti[[#This Row],[Trajanje (godine)]]*12))-StudentskiKrediti[[#This Row],[Iznos kredita]],"") -> 2,727.86 kn | L13: =IF(COUNTA(StudentskiKrediti[[#This Row],[Iznos kredita]]:StudentskiKrediti[[#This Row],[Trajanje (godine)]])<>4,"",PMT(StudentskiKrediti[[#This Row],[Godišnja kamatna stopa]]/12,StudentskiKrediti[[#This Row],[Trajanje (godine)]]*12,-StudentskiKrediti[[#This Row],[Iznos kredita]],0,0)) -> 106.07 kn | M13: =IFERROR(StudentskiKrediti[[#This Row],[Rata]]*12,"") -> 1,272.79 kn
C14: 20987N87 | D14: Kreditor 2 | E14: 8,000.00 kn | F14: 5.00% | G14: 2011-05-01 | H14: 10 | I14: =IF(AND(StudentskiKrediti[[#This Row],[Datum početka]]>0,StudentskiKrediti[[#This Row],[Trajanje (godine)]]>0),EDATE(StudentskiKrediti[[#This Row],[Datum početka]],StudentskiKrediti[[#This Row],[Trajanje (godine)]]*12),"") -> 2021-05-01 | J14: =IF(AND(RazdobljaOtplateKreditaPočinjeDanas,COUNT(StudentskiKrediti[[#This Row],[Iznos kredita]]:StudentskiKrediti[[#This Row],[Trajanje (godine)]])=4,StudentskiKrediti[[#This Row],[Datum početka]]<TODAY()),PMT(StudentskiKrediti[[#This Row],[Godišnja kamatna stopa]]/12,StudentskiKrediti[[#This Row],[Trajanje (godine)]]*12,-StudentskiKrediti[[#This Row],[Iznos kredita]],0,0),"") -> 84.85 kn | K14: =IFERROR((StudentskiKrediti[[#This Row],[Rata]]*(StudentskiKrediti[[#This Row],[Trajanje (godine)]]*12))-StudentskiKrediti[[#This Row],[Iznos kredita]],"") -> 2,182.29 kn | L14: =IF(COUNTA(StudentskiKrediti[[#This Row],[Iznos kredita]]:StudentskiKrediti[[#This Row],[Trajanje (godine)]])<>4,"",PMT(StudentskiKrediti[[#This Row],[Godišnja kamatna stopa]]/12,StudentskiKrediti[[#This Row],[Trajanje (godine)]]*12,-StudentskiKrediti[[#This Row],[Iznos kredita]],0,0)) -> 84.85 kn | M14: =IFERROR(StudentskiKrediti[[#This Row],[Rata]]*12,"") -> 1,018.23 kn
C15: 36785LM | D15: Kreditor 3 | E15: 6,000.00 kn | F15: 4.50% | G15: 2012-03-01 | H15: 10 | I15: =IF(AND(StudentskiKrediti[[#This Row],[Datum početka]]>0,StudentskiKrediti[[#This Row],[Trajanje (godine)]]>0),EDATE(StudentskiKrediti[[#This Row],[Datum početka]],StudentskiKrediti[[#This Row],[Trajanje (godine)]]*12),"") -> 2022-03-01 | J15: =IF(AND(RazdobljaOtplateKreditaPočinjeDanas,COUNT(StudentskiKrediti[[#This Row],[Iznos kredita]]:StudentskiKrediti[[#This Row],[Trajanje (godine)]])=4,StudentskiKrediti[[#This Row],[Datum početka]]<TODAY()),PMT(StudentskiKrediti[[#This Row],[Godišnja kamatna stopa]]/12,StudentskiKrediti[[#This Row],[Trajanje (godine)]]*12,-StudentskiKrediti[[#This Row],[Iznos kredita]],0,0),"") -> 62.18 kn | K15: =IFERROR((StudentskiKrediti[[#This Row],[Rata]]*(StudentskiKrediti[[#This Row],[Trajanje (godine)]]*12))-StudentskiKrediti[[#This Row],[Iznos kredita]],"") -> 1,461.97 kn | L15: =IF(COUNTA(StudentskiKrediti[[#This Row],[Iznos kredita]]:StudentskiKrediti[[#This Row],[Trajanje (godine)]])<>4,"",PMT(StudentskiKrediti[[#This Row],[Godišnja kamatna stopa]]/12,StudentskiKrediti[[#This Row],[Trajanje (godine)]]*12,-StudentskiKrediti[[#This Row],[Iznos kredita]],0,0)) -> 62.18 kn | M15: =IFERROR(StudentskiKrediti[[#This Row],[Rata]]*12,"") -> 746.20 kn
C16: 765R43 | D16: Kreditor 4 | E16: 4,000.00 kn | F16: 5.00% | G16: 2012-05-01 | H16: 5 | I16: =IF(AND(StudentskiKrediti[[#This Row],[Datum početka]]>0,StudentskiKrediti[[#This Row],[Trajanje (godine)]]>0),EDATE(StudentskiKrediti[[#This Row],[Datum početka]],StudentskiKrediti[[#This Row],[Trajanje (godine)]]*12),"") -> 2017-05-01 | J16: =IF(AND(RazdobljaOtplateKreditaPočinjeDanas,COUNT(StudentskiKrediti[[#This Row],[Iznos kredita]]:StudentskiKrediti[[#This Row],[Trajanje (godine)]])=4,StudentskiKrediti[[#This Row],[Datum početka]]<TODAY()),PMT(StudentskiKrediti[[#This Row],[Godišnja kamatna stopa]]/12,StudentskiKrediti[[#This Row],[Trajanje (godine)]]*12,-StudentskiKrediti[[#This Row],[Iznos kredita]],0,0),"") -> 75.48 kn | K16: =IFERROR((StudentskiKrediti[[#This Row],[Rata]]*(StudentskiKrediti[[#This Row],[Trajanje (godine)]]*12))-StudentskiKrediti[[#This Row],[Iznos kredita]],"") -> 529.10 kn | L16: =IF(COUNTA(StudentskiKrediti[[#This Row],[Iznos kredita]]:StudentskiKrediti[[#This Row],[Trajanje (godine)]])<>4,"",PMT(StudentskiKrediti[[#This Row],[Godišnja kamatna stopa]]/12,StudentskiKrediti[[#This Row],[Trajanje (godine)]]*12,-StudentskiKrediti[[#This Row],[Iznos kredita]],0,0)) -> 75.48 kn | M16: =IFERROR(StudentskiKrediti[[#This Row],[Rata]]*12,"") -> 905.82 kn
C17: Ukupne vrijednosti | E17: =SUBTOTAL(109,StudentskiKrediti[Iznos kredita]) -> 28,000.00 kn | J17: =SUBTOTAL(109,StudentskiKrediti[Trenutna mjesečna uplata]) -> 328.59 kn | K17: =SUBTOTAL(109,StudentskiKrediti[Ukupna kamata]) -> 6,901.21 kn | L17: =SUBTOTAL(109,StudentskiKrediti[Rata]) -> 328.59 kn | M17: =SUBTOTAL(109,StudentskiKrediti[Godišnja uplata]) -> 3,943.03 kn
C18: Prosječne vrijednosti | E18: =AVERAGE(StudentskiKrediti[Iznos kredita]) -> 7,000.00 kn | F18: =AVERAGE(StudentskiKrediti[Godišnja kamatna stopa]) -> 4.88% | K18: =AVERAGE(StudentskiKrediti[Ukupna kamata]) -> 1,725.30 kn | M18: =AVERAGE(StudentskiKrediti[Godišnja uplata]) -> 985.76 kn
K20: Ukupna konsolidirana otplata kredita: | M20: =StudentskiKrediti[[#Totals],[Iznos kredita]]+StudentskiKrediti[[#Totals],[Ukupna kamata]] -> 34,901.21 kn
K22: Očekivani mjesečni prihod nakon završetka studija: | M22: =(OčekivanaGodišnjaZarada/12) -> 4,166.67 kn
